bitfinex-derivatives/quotes_BTCF0:USTF0_20230106
["timestamp","ask_amount","ask_price","bid_price","bid_amount"]
[1673033121481,0.6479,16881.0,16880.0,0.00984161]
[1673033122212,0.6492,16881.0,16880.0,0.00984161]
[1673033140391,0.3485,16881.0,16880.0,0.00984161]
[1673033148696,0.3478,16882.0,16880.0,0.15744161]
[1673033149745,0.3478,16882.0,16880.0,0.1586]
[1673033151425,0.2,16882.0,16880.0,0.159]
[1673033153849,0.2,16882.0,16881.0,0.3007]
[1673033155007,0.2,16882.0,16881.0,0.011]
[1673033159212,0.2,16882.0,16881.0,0.3117]
[1673033160570,0.3485,16883.0,16881.0,0.4591]
[1673033160571,0.2,16883.0,16881.0,0.4591]
[1673033160781,0.2,16883.0,16882.0,0.1476]
[1673033161409,0.2,16883.0,16882.0,0.1474]
[1673033162678,0.2,16883.0,16882.0,0.1584]
[1673033164141,0.2,16884.0,16882.0,0.1584]
[1673033165306,0.5007,16884.0,16882.0,0.1584]
[1673033166774,0.1477,16883.0,16882.0,0.011]
[1673033166984,0.2949,16883.0,16882.0,0.011]
[1673033167519,0.2949,16883.0,16882.0,0.01084873]
[1673033168043,0.2949,16883.0,16882.0,0.011]
[1673033169831,0.1479,16883.0,16882.0,0.011]
[1673033171297,0.2,16884.0,16882.0,0.1595]
[1673033171824,0.2,16884.0,16883.0,0.3007]
[1673033173814,0.2,16884.0,16883.0,0.3117]
[1673033174652,0.2,16884.0,16883.0,0.011]
[1673033177408,0.5007,16884.0,16883.0,0.011]
[1673033181516,0.6479,16884.0,16883.0,0.011]
[1673033191303,0.6492,16884.0,16883.0,0.011]
[1673033193406,0.6484,16884.0,16883.0,0.011]
[1673033194343,0.2,16883.0,16879.0,0.6488]
[1673033194558,0.1,16880.0,16879.0,0.6488]
[1673033195181,0.1,16880.0,16879.0,0.6598]
[1673033195602,0.1,16880.0,16879.0,0.6488]
[1673033195818,0.111,16880.0,16879.0,0.6558]
[1673033197180,0.111,16880.0,16879.0,0.4558]
[1673033197397,0.5597,16880.0,16879.0,0.007]
[1673033197599,0.8555,16880.0,16879.0,0.007]
[1673033211483,0.7082,16880.0,16879.0,0.007]
[1673033212325,0.8554,16880.0,16879.0,0.007]
[1673033214004,0.2,16879.0,16875.0,0.614]
[1673033214217,0.1477,16876.0,16873.0,0.4481]
[1673033214428,0.1473,16875.0,16874.0,0.2]
[1673033215476,0.1483,16875.0,16874.0,0.34]
[1673033221373,0.1482,16875.0,16874.0,0.34]
[1673033234207,0.001,16875.0,16874.0,0.4885]
[1673033239467,0.001,16875.0,16874.0,1.0846]
[1673033239665,0.6479,16879.0,16875.0,0.2]
[1673033239877,0.6479,16879.0,16877.0,0.1485]
[1673033240722,0.3472,16879.0,16877.0,0.1485]
[1673033241144,0.3472,16879.0,16877.0,0.1675]
[1673033241348,0.3485,16879.0,16877.0,0.1664]
[1673033242609,0.3485,16879.0,16877.0,0.1665]
[1673033243452,0.3485,16879.0,16877.0,0.2705]
[1673033244077,0.3485,16879.0,16878.0,0.3007]
[1673033245448,0.3485,16879.0,16878.0,0.5527]
[1673033250076,0.1485,16879.0,16878.0,0.5527]
[1673033251437,0.2485,16880.0,16878.0,0.7003]
[1673033252599,0.2485,16880.0,16878.0,0.6483]
[1673033252801,0.2485,16880.0,16878.0,0.7183]
[1673033257423,0.2485,16880.0,16878.0,0.5183]
[1673033261430,0.2472,16880.0,16878.0,0.3707]
[1673033261641,0.1,16880.0,16878.0,0.3707]
[1673033261851,0.2485,16880.0,16878.0,0.3707]
[1673033262057,0.2485,16880.0,16878.0,0.07]
[1673033270993,0.1485,16879.0,16878.0,0.07]
[1673033278875,0.2485,16880.0,16878.0,0.07]
[1673033278876,0.2477,16880.0,16878.0,0.07]
[1673033279825,0.2477,16880.0,16879.0,0.3007]
[1673033281395,0.2485,16880.0,16879.0,0.3027]
[1673033283909,0.1485,16880.0,16879.0,0.3027]
[1673033288117,0.1485,16880.0,16879.0,0.30251931]
[1673033291389,0.348,16881.0,16879.0,0.30251931]
[1673033301462,0.1485,16880.0,16879.0,0.30251931]
[1673033302726,0.1485,16880.0,16879.0,0.30051931]
[1673033303045,0.1485,16880.0,16879.0,0.37051931]
[1673033309241,0.1485,16880.0,16879.0,0.3707]
[1673033311234,0.1485,16880.0,16879.0,0.07]
[1673033314814,0.4492,16880.0,16879.0,0.07]
[1673033315966,0.5977,16880.0,16879.0,0.07]
[1673033321437,0.7462,16880.0,16879.0,0.07]
[1673033321861,0.9462,16880.0,16879.0,0.07]
[1673033328381,0.1,16879.0,16875.0,0.5007]
[1673033328581,0.1485,16876.0,16875.0,0.5007]
[1673033329632,0.1525,16876.0,16875.0,0.6357]
[1673033346793,0.1525,16876.0,16875.0,0.335]
[1673033347004,0.1525,16876.0,16875.0,0.6357]
[1673033354886,0.004,16876.0,16875.0,0.7842]
[1673033369387,0.1513,16876.0,16875.0,0.4357]
[1673033369816,0.2998,16876.0,16875.0,0.135]
[1673033370235,0.4998,16876.0,16875.0,0.135]
[1673033371914,0.3513,16876.0,16875.0,0.135]
[1673033373392,0.3513,16876.0,16875.0,0.1347787]
[1673033377705,0.3523,16876.0,16875.0,0.125]
[1673033381484,0.5008,16876.0,16875.0,0.125]
[1673033387066,0.3523,16876.0,16875.0,0.125]
[1673033401143,0.3523,16876.0,16875.0,0.325]
[1673033409244,0.3523,16876.0,16875.0,0.125]
[1673033417118,0.1523,16876.0,16875.0,0.125]
[1673033417328,0.005,16876.0,16875.0,0.125]
[1673033418812,0.005,16876.0,16875.0,0.12493294]
[1673033421320,0.005,16876.0,16875.0,0.27343294]
[1673033431512,0.1535,16876.0,16875.0,0.12493294]
[1673033445285,0.005,16876.0,16875.0,0.27343294]
[1673033452871,0.00490776,16876.0,16875.0,0.27343294]
[1673033453076,0.00490776,16876.0,16875.0,0.57413294]
[1673033453292,0.00490776,16876.0,16875.0,0.87483294]
[1673033461394,0.00490776,16876.0,16875.0,0.87383294]
[1673033464953,0.00490776,16876.0,16875.0,0.27243294]
[1673033465169,0.00490776,16876.0,16875.0,0.87383294]
[1673033486612,1e-08,16876.0,16875.0,1.02283294]
[1673033486822,1e-08,16876.0,16875.0,1.61543294]
[1673033487038,1e-08,16876.0,16875.0,1.76333294]
[1673033511419,1e-08,16876.0,16875.0,1.61483294]
[1673033538746,1e-08,16876.0,16875.0,1.61463251]
[1673033539890,1e-08,16876.0,16875.0,1.31393251]
[1673033540108,1e-08,16876.0,16875.0,1.61463251]
[1673033546830,0.3478,16881.0,16876.0,0.74124143]
[1673033547048,0.3478,16881.0,16880.0,0.6014]
[1673033548195,0.3988,16881.0,16880.0,0.6084]
[1673033548823,0.251,16881.0,16880.0,0.7565]
[1673033549249,0.228,16881.0,16880.0,0.7505]
[1673033549672,0.2,16881.0,16880.0,0.7495]
[1673033549884,0.251,16881.0,16880.0,0.7565]
[1673033553981,0.051,16881.0,16880.0,0.7565]
[1673033555659,0.051,16881.0,16880.0,0.7569]
[1673033559448,0.051,16881.0,16880.0,0.9569]
[1673033579430,0.051,16881.0,16880.0,1.1049]
[1673033584052,0.03,16881.0,16880.0,1.0989]
[1673033590471,0.03,16881.0,16880.0,0.9504]
[1673033592887,0.03,16881.0,16880.0,0.95027186]
[1673033620944,0.03,16881.0,16880.0,0.64957186]
[1673033621358,0.03,16881.0,16880.0,0.50157186]
[1673033621568,0.1777,16881.0,16880.0,0.50157186]
[1673033626827,0.03,16881.0,16880.0,0.64967186]
[1673033631452,0.03,16881.0,16880.0,0.64867186]
[1673033633019,0.03,16881.0,16880.0,0.65007186]
[1673033639229,0.03,16881.0,16880.0,0.64867186]
[1673033639853,0.03,16881.0,16880.0,4.41867186]
[1673033640065,0.03,16881.0,16880.0,0.64867186]
[1673033641443,0.03,16881.0,16880.0,0.64947186]
[1673033644794,0.03,16881.0,16880.0,0.65007186]
[1673033647113,0.03,16881.0,16880.0,0.64984674]
[1673033648163,0.03,16881.0,16880.0,0.95054674]
[1673033651429,0.03,16881.0,16880.0,0.94914674]
[1673033654990,0.03,16881.0,16880.0,0.34774674]
[1673033655201,0.03,16881.0,16880.0,0.94914674]
[1673033661318,0.03,16881.0,16880.0,0.94944674]
[1673033662048,0.03,16881.0,16880.0,0.34804674]
[1673033662253,0.03,16881.0,16880.0,0.94944674]
[1673033664038,0.03,16881.0,16880.0,0.34804674]
[1673033664255,0.03,16881.0,16880.0,0.94944674]
[1673033678025,0.03,16881.0,16880.0,0.34804674]
[1673033678242,0.03,16881.0,16880.0,0.94944674]
[1673033681392,0.03,16881.0,16880.0,0.95014674]
[1673033683601,0.03,16881.0,16880.0,0.7505]
[1673033685607,0.1785,16881.0,16880.0,0.6024]
[1673033690960,0.1785,16881.0,16880.0,0.3017]
[1673033692854,0.1785,16881.0,16880.0,0.30163578]
[1673033701375,0.03,16881.0,16880.0,0.30163578]
[1673033711465,0.03,16881.0,16880.0,0.44873578]
[1673033722616,0.03,16881.0,16880.0,0.30163578]
[1673033740808,0.03,16881.0,16880.0,0.00093578]
[1673033741432,0.1779,16881.0,16880.0,0.00093578]
[1673033741859,0.17776595,16881.0,16880.0,0.00093578]
[1673033745747,0.17776595,16881.0,16880.0,0.30163578]
[1673033751109,0.17776595,16881.0,16880.0,0.00093578]
[1673033767832,0.17776595,16881.0,16880.0,0.30163578]
[1673033771391,0.17836595,16881.0,16880.0,0.30163578]
[1673033775804,0.02986595,16881.0,16880.0,0.44883578]
[1673033794002,0.02986595,16881.0,16880.0,0.44874852]
[1673033799462,0.2,16885.0,16881.0,0.2]
[1673033799780,0.2,16885.0,16884.0,0.4486]
[1673033801247,0.238,16885.0,16884.0,0.4486]
[1673033801872,0.238,16885.0,16884.0,0.4606]
[1673033811436,0.238,16885.0,16884.0,0.3127]
[1673033815646,0.038,16885.0,16884.0,0.4602]
[1673033816266,0.038,16885.0,16884.0,0.6074]
[1673033816693,0.038,16885.0,16884.0,0.8074]
[1673033820370,0.038,16885.0,16884.0,1.1081]
[1673033821417,0.038,16885.0,16884.0,0.9609]
[1673033828987,0.038,16885.0,16884.0,0.9606]
[1673033831504,0.038,16885.0,16884.0,0.961]
[1673033831714,0.1865,16885.0,16884.0,0.8134]
[1673033831923,0.1865,16885.0,16884.0,0.3127]
[1673033832559,0.335,16885.0,16884.0,0.3127]
[1673033846120,0.335,16885.0,16884.0,0.31258122]
[1673033860527,1.26294195,16892.0,16884.0,0.46108122]
[1673033860728,0.3,16895.0,16890.0,0.3007]
[1673033860941,0.3,16895.0,16893.0,0.3007]
[1673033861157,0.93378815,16896.0,16893.0,0.6014]
[1673033861363,0.93180205,16897.0,16895.0,0.3007]
[1673033861676,0.91488123,16897.0,16896.0,2.8273]
[1673033862001,0.05860352,16897.0,16896.0,2.827]
[1673033862207,0.93378815,16901.0,16896.0,1.194]
[1673033862410,0.3007,16899.0,16893.0,0.4607]
[1673033862626,0.1472,16897.0,16891.0,0.1493]
[1673033862836,0.1472,16897.0,16896.0,0.012]
[1673033863046,0.1472,16897.0,16890.0,0.58957488]
[1673033863047,0.2,16896.0,16890.0,0.5007]
[1673033863258,0.3007,16891.0,16890.0,0.5926]
[1673033863578,0.2,16890.0,16889.0,0.1485]
[1673033863777,0.0119,16890.0,16889.0,0.1485]
[1673033863988,0.3007,16893.0,16890.0,0.2]
[1673033864316,0.3007,16894.0,16892.0,0.1485]
[1673033864317,0.1485,16894.0,16892.0,0.1485]
[1673033864627,0.2,16893.0,16892.0,0.1485]
[1673033864938,0.1472,16894.0,16892.0,0.1481]
[1673033865354,0.2,16898.0,16893.0,0.5972]
[1673033865566,0.1485,16900.0,16894.0,0.2]
[1673033865567,0.2,16900.0,16894.0,0.2]
[1673033865770,0.2,16900.0,16895.0,0.3007]
[1673033865985,0.2,16900.0,16897.0,0.3007]
[1673033866201,0.3007,16899.0,16894.0,0.9411]
[1673033866625,0.2,16898.0,16894.0,0.9411]
[1673033866835,0.6014,16897.0,16894.0,0.5926]
[1673033867146,0.2964,16895.0,16894.0,0.6036]
[1673033867466,0.4437,16895.0,16892.0,0.8933]
[1673033867673,0.1477,16893.0,16892.0,0.3007]
[1673033867884,0.1477,16893.0,16891.0,0.2]
[1673033868199,0.1473,16892.0,16891.0,0.2]
[1673033868616,0.1472,16894.0,16891.0,0.3485]
[1673033868825,0.1472,16894.0,16892.0,0.2162]
[1673033869244,0.1472,16894.0,16893.0,0.2]
[1673033869876,0.1472,16894.0,16892.0,0.2162]
[1673033870192,0.1472,16894.0,16892.0,0.1472]
[1673033870420,0.1472,16894.0,16892.0,0.4479]
[1673033870615,0.1472,16894.0,16893.0,0.2]
[1673033871347,0.1473,16894.0,16893.0,0.2]
[1673033871985,0.1473,16894.0,16893.0,0.201]
[1673033872200,0.1473,16894.0,16893.0,0.3489]
[1673033872403,0.1485,16896.0,16893.0,1.0902]
[1673033872614,0.1485,16896.0,16894.0,0.4481]
[1673033872825,0.1485,16896.0,16894.0,0.7481]
[1673033873035,0.1485,16896.0,16894.0,0.9014]
[1673033873247,0.1473,16898.0,16895.0,0.7411]
[1673033873454,0.2,16899.0,16895.0,0.7411]
[1673033873455,0.3472,16899.0,16897.0,0.1471]
[1673033873773,0.1485,16898.0,16896.0,0.6014]
[1673033873992,0.1485,16898.0,16897.0,0.2]
[1673033874192,0.1472,16898.0,16897.0,0.2]
[1673033874510,0.1472,16898.0,16897.0,0.211]
[1673033874920,0.1472,16898.0,16897.0,0.2]
[1673033875131,0.1472,16898.0,16897.0,0.21]
[1673033875558,0.1485,16900.0,16897.0,0.358]
[1673033875559,0.2,16900.0,16897.0,0.358]
[1673033875770,0.2,16900.0,16899.0,0.4481]
[1673033876195,0.1485,16901.0,16899.0,0.4481]
[1673033876406,0.3478,16902.0,16900.0,0.1485]
[1673033876721,0.3478,16902.0,16900.0,0.3485]
[1673033877136,0.3478,16902.0,16901.0,0.2]
[1673033877349,0.2,16903.0,16901.0,0.6479]
[1673033878294,0.00026195,16908.0,16903.0,0.1481]
[1673033878496,0.00026195,16908.0,16902.0,0.2967]
[1673033878497,0.00026195,16908.0,16902.0,0.3007]
[1673033878706,0.3007,16906.0,16902.0,0.3007]
[1673033878923,0.6014,16906.0,16902.0,0.3007]
[1673033879242,0.3007,16906.0,16902.0,0.3007]
[1673033879444,0.3485,16905.0,16902.0,0.4482]
[1673033879764,0.3485,16905.0,16902.0,0.3007]
[1673033879765,0.1473,16903.0,16902.0,0.3007]
[1673033880290,0.1473,16903.0,16902.0,0.3117]
[1673033880497,0.2959,16903.0,16902.0,0.3007]
[1673033880704,0.7444,16903.0,16902.0,0.008]
[1673033880909,0.891,16902.0,16897.0,0.8933]
[1673033881124,0.1475,16898.0,16897.0,0.8933]
[1673033881335,0.891,16902.0,16897.0,1.0407]
[1673033881336,0.1485,16899.0,16897.0,1.0407]
[1673033881652,0.1485,16899.0,16897.0,1.2407]
[1673033881962,0.2,16901.0,16898.0,0.1485]
[1673033881963,0.1477,16900.0,16898.0,0.1485]
[1673033882176,0.1477,16900.0,16899.0,0.3007]
[1673033882797,0.1477,16900.0,16898.0,0.3485]
[1673033883013,0.1485,16899.0,16898.0,0.139]
[1673033883650,0.1485,16899.0,16897.0,0.6492]
[1673033884179,0.1485,16899.0,16898.0,0.139]
[1673033885224,0.1485,16899.0,16897.0,0.6492]
[1673033885439,0.1485,16899.0,16897.0,0.4407]
[1673033885440,0.3485,16898.0,16897.0,0.4407]
[1673033885648,0.3485,16898.0,16897.0,0.3007]
[1673033886490,0.3485,16898.0,16897.0,0.4407]
[1673033886491,0.3495,16898.0,16897.0,0.4407]
[1673033886689,0.3485,16898.0,16897.0,0.3007]
[1673033886899,0.3485,16898.0,16897.0,0.4397]
[1673033887429,0.497,16898.0,16897.0,0.139]
[1673033887844,0.7977,16898.0,16897.0,0.12716396]
[1673033888582,0.9462,16898.0,16897.0,0.12716396]
[1673033889005,0.2,16897.0,16894.0,0.3007]
[1673033889324,0.1485,16895.0,16894.0,0.6014]
[1673033890481,0.1485,16895.0,16894.0,0.6494]
[1673033890482,0.1615,16895.0,16894.0,0.6494]
[1673033891315,0.1615,16895.0,16894.0,0.3487]
[1673033894149,0.1615,16895.0,16894.0,0.7968]
[1673033894150,0.013,16895.0,16894.0,0.7968]
[1673033894357,0.013,16895.0,16894.0,0.7966]
[1673033894569,0.013,16895.0,16894.0,0.9966]
[1673033895522,0.013,16895.0,16894.0,0.9975]
[1673033897937,0.1615,16895.0,16894.0,0.3487]
[1673033898147,0.1615,16895.0,16894.0,0.048]
[1673033900040,0.3615,16895.0,16894.0,0.048]
[1673033900355,0.6574,16895.0,16894.0,0.048]
[1673033900571,0.6585,16895.0,16894.0,0.048]
[1673033901406,1.5495,16895.0,16894.0,0.048]
[1673033901816,0.3615,16895.0,16894.0,0.048]
[1673033902031,0.213,16895.0,16894.0,0.4961]
[1673033902451,0.013,16895.0,16894.0,0.4961]
[1673033902656,0.013,16895.0,16894.0,0.3487]
[1673033902877,0.013,16895.0,16894.0,0.7931]
[1673033903404,0.013,16895.0,16894.0,0.9931]
[1673033904025,0.001,16895.0,16894.0,1.0841]
[1673033906345,0.001,16895.0,16894.0,0.758]
[1673033906870,0.001,16895.0,16894.0,0.6397]
[1673033908036,0.5007,16898.0,16894.0,0.5007]
[1673033908246,0.001,16895.0,16894.0,0.6407]
[1673033909398,0.001,16895.0,16894.0,0.7592]
[1673033909613,0.001,16895.0,16894.0,0.7587]
[1673033920233,0.001,16895.0,16894.0,0.7592]
[1673033925594,0.1193,16895.0,16894.0,0.6407]
[1673033928002,0.1193,16895.0,16894.0,0.34]
[1673033931807,0.1193,16895.0,16894.0,0.6407]
[1673033932858,0.001,16895.0,16894.0,0.6407]
[1673033934536,0.001,16895.0,16894.0,0.34]
[1673033936634,0.1195,16895.0,16894.0,0.14]
[1673033940521,0.1195,16895.0,16894.0,0.13989469]
[1673033947255,0.1193,16895.0,16894.0,0.13989469]
[1673033967438,0.001,16895.0,16894.0,0.13989469]
[1673033967651,0.2373,16895.0,16894.0,0.13989469]
[1673033969127,0.69907045,16901.0,16895.0,0.2373]
[1673033969332,0.13054163,16901.0,16896.0,0.6]
[1673033969645,0.00609007,16909.0,16902.0,0.3007]
[1673033969861,0.6236,16916.0,16907.0,1.194]
[1673033970068,0.3229,16915.0,16914.0,0.1184]
[1673033970286,0.3007,16918.0,16914.0,0.5376]
[1673033970485,0.2,16917.0,16916.0,0.1185]
[1673033970697,0.5,16917.0,16916.0,0.1185]
[1673033971013,0.2,16917.0,16916.0,0.1185]
[1673033971330,0.3229,16920.0,16916.0,0.6544]
[1673033971540,0.2,16917.0,16916.0,0.7311]
[1673033971745,0.2,16917.0,16916.0,0.2472]
[1673033972069,0.5007,16917.0,16916.0,0.012]
[1673033972798,0.5007,16917.0,16916.0,0.1305]
[1673033973217,0.5127,16917.0,16916.0,0.1185]
[1673033974163,0.5127,16917.0,16916.0,0.2365]
[1673033974382,0.212,16917.0,16916.0,0.2365]
[1673033975324,0.012,16917.0,16916.0,0.2365]
[1673033975536,0.012,16917.0,16916.0,0.355]
[1673033975859,0.012,16917.0,16916.0,0.2365]
[1673033976589,0.2,16918.0,16916.0,0.2365]
[1673033976799,0.012,16917.0,16916.0,0.1185]
[1673033977010,0.012,16917.0,16916.0,0.237]
[1673033977532,0.012,16917.0,16916.0,0.1185]
[1673033978909,0.001,16917.0,16916.0,0.2415]
[1673033981424,0.001,16917.0,16916.0,0.36]
[1673033982161,0.3017,16917.0,16914.0,0.3176]
[1673033982477,0.3017,16917.0,16915.0,0.5926]
[1673033982478,0.1,16916.0,16915.0,0.5926]
[1673033982684,0.1,16916.0,16915.0,0.7109]
[1673033983100,0.1,16916.0,16915.0,0.1183]
[1673033983420,0.3007,16921.0,16916.0,0.12330314]
[1673033983633,0.3007,16928.0,16920.0,0.6557]
[1673033983839,0.6014,16935.0,16928.0,0.5332]
[1673033984051,0.3007,16933.0,16928.0,0.1186]
[1673033984259,0.2,16932.0,16928.0,0.1186]
[1673033984466,0.2,16932.0,16931.0,0.2364]
[1673033984678,0.2,16932.0,16930.0,0.1176]
[1673033984679,0.5007,16932.0,16930.0,0.1176]
[1673033984889,0.5007,16932.0,16924.0,0.8339]
[1673033984890,1.1014,16932.0,16924.0,0.8339]
[1673033985100,0.3007,16930.0,16924.0,0.4199]
[1673033985314,0.3007,16930.0,16926.0,0.6014]
[1673033985522,0.3007,16930.0,16929.0,0.2359]
[1673033985950,0.3007,16930.0,16929.0,0.1185]
[1673033986149,0.3127,16930.0,16929.0,0.1185]
[1673033986360,0.3007,16930.0,16929.0,0.1185]
[1673033986588,0.4227,16930.0,16929.0,0.006]
[1673033986798,0.2,16929.0,16924.0,0.1183]
[1673033987014,0.3007,16927.0,16924.0,0.1183]
[1673033987226,0.2,16926.0,16922.0,0.3183]
[1673033987428,0.3007,16925.0,16922.0,0.1183]
[1673033987638,0.1,16924.0,16922.0,0.1183]
[1673033987847,0.1,16924.0,16923.0,0.1178]
[1673033988799,0.1,16924.0,16923.0,0.5902]
[1673033988800,0.013,16924.0,16923.0,0.5902]
[1673033989009,0.013,16924.0,16923.0,0.7087]
[1673033989230,0.013,16924.0,16923.0,0.9087]
[1673033990379,0.013,16924.0,16923.0,0.3715]
[1673033990595,0.3007,16927.0,16923.0,0.254]
[1673033990911,0.3007,16927.0,16921.0,0.1]
[1673033990912,0.3007,16925.0,16921.0,0.1]
[1673033991121,0.112,16924.0,16923.0,0.054]
[1673033991425,0.1,16924.0,16921.0,0.2]
[1673033991640,0.3007,16923.0,16921.0,0.2]
[1673033991853,0.3007,16923.0,16922.0,0.1185]
[1673033992162,0.113,16924.0,16923.0,0.054]
[1673033992374,0.013,16924.0,16923.0,0.5917]
[1673033992584,0.013,16924.0,16923.0,0.7102]
[1673033992901,0.013,16924.0,16923.0,0.8102]
[1673033993313,0.1,16926.0,16923.0,0.7562]
[1673033993529,0.3248,16927.0,16923.0,0.7562]
[1673033993530,0.3248,16927.0,16926.0,0.711]
[1673033993735,0.2,16929.0,16926.0,1.4818]
[1673033993941,0.5007,16931.0,16928.0,0.947]
[1673033994155,0.5007,16931.0,16930.0,0.2369]
[1673033994576,0.5007,16931.0,16930.0,0.2368]
[1673033995001,0.5757,16931.0,16930.0,0.1184]
[1673033995219,0.5757,16931.0,16929.0,0.5926]
[1673033995534,0.5757,16931.0,16930.0,0.01]
[1673033996154,0.5757,16931.0,16930.0,0.2282]
[1673033996573,0.5757,16931.0,16930.0,0.1272]
[1673033999203,0.5517,16931.0,16930.0,0.1222]
[1673033999526,0.5517,16931.0,16930.0,0.004]
[1673033999832,0.2,16930.0,16926.0,0.1184]
[1673034000043,0.1,16927.0,16926.0,0.1184]
[1673034000253,0.1,16927.0,16926.0,0.2367]
[1673034000466,0.3007,16928.0,16926.0,0.8293]
[1673034000667,0.3007,16928.0,16927.0,0.7111]
[1673034001095,0.3007,16928.0,16926.0,0.1814]
[1673034001416,0.111,16927.0,16926.0,0.1814]
[1673034001728,0.111,16927.0,16926.0,0.1815]
[1673034001937,0.111,16927.0,16926.0,0.063]
[1673034002561,0.2185,16927.0,16925.0,0.5926]
[1673034003201,0.2185,16927.0,16926.0,0.063]
[1673034003202,0.2305,16927.0,16926.0,0.063]
[1673034003620,0.2295,16927.0,16925.0,0.6556]
[1673034003834,0.3007,16926.0,16925.0,0.6556]
[1673034004038,0.4187,16926.0,16923.0,0.7109]
[1673034004353,0.3007,16938.0,16925.0,0.4174]
[1673034004566,0.3007,16938.0,16934.0,0.5926]
[1673034004776,0.3007,16938.0,16933.0,1.194]
[1673034005096,0.2,16937.0,16935.0,0.8933]
[1673034005308,0.2,16937.0,16936.0,0.118]
[1673034005518,0.3007,16938.0,16936.0,0.8291]
[1673034005727,0.6324,16940.0,16937.0,0.4192]
[1673034005728,0.9324,16940.0,16937.0,0.4192]
[1673034006040,0.2,16939.0,16936.0,0.5926]
[1673034006243,0.1183,16937.0,16935.0,0.3007]
[1673034006454,0.1183,16937.0,16936.0,0.01]
[1673034006869,0.4368,16937.0,16936.0,0.01]
[1673034007086,0.6192,16939.0,16936.0,0.01]
[1673034007087,0.2,16938.0,16936.0,0.9033]
[1673034007290,0.2,16939.0,16936.0,1.204]
[1673034007504,0.2,16939.0,16938.0,0.8933]
[1673034007713,0.2,16939.0,16938.0,1.1303]
[1673034007924,0.2,16939.0,16938.0,0.3007]
[1673034008352,0.20031371,16941.0,16936.0,0.4302]
[1673034008560,0.31881371,16941.0,16938.0,0.1183]
[1673034008763,0.31881371,16941.0,16938.0,0.1293]
[1673034009192,0.31881371,16941.0,16938.0,0.1183]
[1673034009615,0.4183,16940.0,16936.0,0.4189]
[1673034009928,0.2,16939.0,16938.0,0.011]
[1673034010565,0.318,16939.0,16938.0,0.0001]
[1673034010776,0.6187,16939.0,16938.0,0.0001]
[1673034010984,0.7372,16939.0,16938.0,0.0001]
[1673034011188,0.7372,16939.0,16936.0,0.01]
[1673034011394,0.4191,16937.0,16936.0,0.01]
[1673034011607,0.4191,16937.0,16934.0,0.3007]
[1673034012032,0.5107,16939.0,16936.0,0.1182]
[1673034012246,0.5107,16939.0,16937.0,0.1174]
[1673034012247,0.21,16939.0,16937.0,0.1174]
[1673034012773,0.21,16939.0,16938.0,0.3007]
[1673034013195,0.21,16939.0,16938.0,0.419]
[1673034013406,0.01,16939.0,16938.0,0.419]
[1673034014556,0.01,16939.0,16938.0,0.43]
[1673034015288,0.01,16939.0,16938.0,0.5475]
[1673034016864,0.009,16939.0,16938.0,0.5465]
[1673034018239,0.3007,16946.0,16938.0,1.7203]
[1673034018558,0.3897,16949.0,16945.0,0.1185]
[1673034018559,0.6452,16948.0,16945.0,0.1185]
[1673034018758,0.3897,16949.0,16944.0,0.4183]
[1673034018759,0.3897,16949.0,16944.0,1.0109]
[1673034018974,0.2,16948.0,16944.0,1.0109]
[1673034019173,0.2,16948.0,16947.0,0.1183]
[1673034019807,0.089,16949.0,16948.0,0.1]
[1673034020018,0.089,16949.0,16948.0,0.6553]
[1673034020342,0.089,16949.0,16947.0,0.012]
[1673034020550,0.8014,16948.0,16947.0,0.11405896]
[1673034020862,0.2,16948.0,16946.0,0.118]
[1673034021278,0.2,16948.0,16947.0,0.011]
[1673034021489,0.3185,16948.0,16947.0,0.011]
[1673034022329,0.7372,16948.0,16947.0,0.0001]
[1673034022544,0.1179,16947.0,16946.0,0.6016]
[1673034022864,0.1179,16947.0,16943.0,0.3007]
[1673034022865,0.3533,16947.0,16944.0,0.5926]
[1673034023180,0.2368,16945.0,16943.0,0.3007]
[1673034023389,0.1185,16944.0,16943.0,0.3007]
[1673034023805,0.218,16944.0,16943.0,0.3007]
[1673034024233,0.3365,16944.0,16943.0,0.3007]
[1673034024538,0.3565,16944.0,16943.0,0.3057]
[1673034024856,0.2385,16944.0,16943.0,0.3057]
[1673034025804,0.2385,16944.0,16943.0,0.3107]
[1673034026529,0.02,16944.0,16943.0,1.0216]
[1673034026746,0.02,16944.0,16943.0,1.3216]
[1673034027373,0.02,16944.0,16943.0,1.0216]
[1673034027798,0.02,16944.0,16943.0,0.9033]
[1673034028851,0.02,16944.0,16943.0,0.01]
[1673034029274,0.1395,16944.0,16942.0,0.5926]
[1673034029479,0.1395,16944.0,16939.0,0.209]
[1673034029480,0.2356,16943.0,16939.0,0.209]
[1673034029687,0.1185,16940.0,16939.0,0.209]
[1673034029896,0.1185,16940.0,16938.0,0.7014]
[1673034030627,0.1185,16940.0,16939.0,0.2]